bitfinex/quotes_ETHUSD_20240603
["timestamp","ask_amount","ask_price","bid_price","bid_amount"]
[1717448019182,3.26081273,3776.2,3776.1,0.717]
[1717448019600,3.833664,3776.2,3776.1,0.717]
[1717448022116,3.833664,3776.2,3775.4,3.63848775]
[1717448022389,3.26116939,3776.2,3776.1,0.717]
[1717448022614,3.83367741,3776.2,3776.1,0.717]
[1717448023789,3.83367741,3776.2,3775.1,1.5561589]
[1717448023790,2.64847,3775.8,3775.1,3.3572]
[1717448023989,0.61236675,3775.7,3775.1,3.3572]
[1717448024214,0.03985873,3775.7,3775.6,0.717]
[1717448024422,0.57255105,3775.7,3775.6,0.717]
[1717448024799,0.61240978,3775.7,3775.6,0.717]
[1717448027510,0.61241089,3775.7,3775.6,0.717]
[1717448028650,0.03985873,3775.7,3775.6,0.717]
[1717448028826,0.61241131,3775.7,3775.6,0.717]
[1717448041581,0.03985873,3775.7,3775.6,0.717]
[1717448042091,0.03917019,3775.7,3775.6,1.02996]
[1717448042304,3.0,3776.3,3775.7,2.2719]
[1717448042586,3.0,3776.3,3776.2,0.717]
[1717448044568,3.0,3776.6,3776.2,0.717]
[1717448044881,3.0,3776.6,3776.5,0.717]
[1717448049266,3.03945642,3776.6,3776.5,0.717]
[1717448050595,0.03945642,3776.6,3776.5,0.717]
[1717448050814,0.03945642,3776.6,3776.5,1.01696]
[1717448050955,3.0,3777.0,3776.5,1.01696]
[1717448051265,3.0,3777.0,3776.9,0.717]
[1717448051467,3.03832892,3777.0,3776.9,0.717]
[1717448052433,0.03832892,3777.0,3776.9,0.717]
[1717448052706,3.0,3777.0,3776.9,0.717]
[1717448052860,0.03711355,3777.0,3776.9,0.717]
[1717448053061,3.0,3777.3,3776.9,0.717]
[1717448053270,3.0,3777.3,3777.2,0.717]
[1717448057677,3.0,3777.3,3776.8,2.2554]
[1717448057883,3.0,3777.3,3777.2,0.717]
[1717448061778,2.64746,3777.2,3776.3,2.4587]
[1717448062022,3.0,3777.1,3776.4,1.32126577]
[1717448062217,2.6476,3777.0,3776.3,2.4587]
[1717448062383,3.0,3776.9,3776.0,2.3791]
[1717448062577,3.0,3776.9,3776.8,0.717]
[1717448064211,2.64783,3776.7,3776.1,1.32126577]
[1717448064402,2.64783,3776.7,3776.6,0.717]
[1717448068426,2.64783,3776.7,3776.0,2.3791]
[1717448068630,2.64783,3776.7,3776.6,0.717]
[1717448072230,2.64783,3776.7,3776.0,3.70036577]
[1717448072538,2.64783,3776.7,3776.6,0.717]
[1717448072838,3.212613,3776.7,3776.6,0.717]
[1717448079102,3.24985361,3776.7,3776.6,0.717]
[1717448080813,2.68507061,3776.7,3776.6,0.717]
[1717448084123,2.68507061,3776.7,3776.0,3.70036577]
[1717448084555,2.68507061,3776.7,3776.6,0.717]
[1717448095393,2.64799,3776.5,3776.0,3.70036577]
[1717448095552,2.64799,3776.5,3776.4,0.717]
[1717448095754,2.68396505,3776.5,3776.4,0.717]
[1717448104785,0.03597505,3776.5,3776.4,4.68628577]
[1717448105001,0.03597505,3776.5,3776.4,8.40912362]
[1717448105303,7.32,3777.3,3776.5,2.334]
[1717448105513,7.32,3777.3,3777.2,0.717]
[1717448105803,2.2597,3777.9,3777.2,0.717]
[1717448105976,2.2597,3777.9,3777.4,0.717]
[1717448106307,8.24343,3777.5,3777.4,0.717]
[1717448108928,8.24343,3777.5,3776.1,3.0153281]
[1717448108929,2.4835,3776.9,3776.1,3.0153281]
[1717448109248,2.4835,3776.9,3776.1,2.4596]
[1717448109249,2.64789,3776.6,3776.1,2.4596]
[1717448109570,2.64789,3776.6,3776.5,0.717]
[1717448112662,2.64789,3776.6,3776.1,2.4596]
[1717448112815,2.64789,3776.6,3776.5,0.717]
[1717448117896,2.64789,3776.6,3776.1,2.4596]
[1717448118217,2.64789,3776.6,3775.7,0.5557281]
[1717448118218,2.64812,3776.3,3775.7,3.67964439]
[1717448118357,2.64812,3776.3,3776.2,0.717]
[1717448119267,2.64812,3776.3,3775.7,2.2991]
[1717448119482,5.04462,3776.3,3775.6,1.38054439]
[1717448119663,2.64837,3775.9,3775.5,2.2991]
[1717448119993,2.64837,3775.9,3775.3,0.5557281]
[1717448119994,2.64837,3775.9,3775.8,0.717]
[1717448120197,2.64837,3775.9,3775.3,1.38054439]
[1717448120505,2.64837,3775.9,3775.8,0.717]
[1717448121599,2.64837,3775.9,3775.4,1.32126577]
[1717448121816,2.64837,3775.9,3775.8,0.717]
[1717448123407,5.256807,3775.9,3775.8,0.717]
[1717448124175,5.28713033,3775.9,3775.8,0.717]
[1717448125012,2.64868,3775.5,3775.1,1.0]
[1717448125333,2.64868,3775.5,3775.4,0.717]
[1717448126048,2.64868,3775.5,3775.1,1.0]
[1717448126336,2.64879,3775.3,3775.1,1.0]
[1717448126495,2.64879,3775.3,3775.2,0.717]
[1717448132080,9.6648,3776.0,3775.2,0.717]
[1717448132233,3.0,3775.9,3775.2,0.717]
[1717448132435,5.64837,3775.9,3775.8,0.717]
[1717448135852,2.64837,3775.9,3775.8,0.717]
[1717448136037,2.64815,3776.3,3775.8,0.717]
[1717448136243,2.64815,3776.3,3775.6,2.4136]
[1717448136244,3.0,3776.2,3775.6,2.4136]
[1717448136444,3.0,3776.2,3776.1,0.717]
[1717448137472,3.0,3776.2,3775.7,0.24136]
[1717448137819,3.0,3776.2,3775.2,2.90906]
[1717448137820,5.12165,3776.1,3775.2,2.90906]
[1717448137938,2.64844,3775.8,3775.3,1.32126577]
[1717448138252,2.64844,3775.8,3775.7,0.717]
[1717448139270,2.67736162,3775.8,3775.7,0.717]
[1717448145087,2.64823,3776.1,3775.7,4.35846577]
[1717448145589,2.64823,3776.1,3776.0,0.717]
[1717448152764,2.67541441,3776.1,3776.0,0.717]
[1717448157318,9.968,3776.5,3776.0,2.47411235]
[1717448157504,0.02529581,3776.1,3776.0,4.89651235]
[1717448157693,3.0,3776.4,3776.0,4.89651235]
[1717448158014,3.0,3776.4,3776.3,0.717]
[1717448160820,9.7159,3777.1,3776.3,4.36866577]
[1717448160821,2.64775,3776.8,3776.3,4.36866577]
[1717448161031,2.64775,3776.8,3776.7,0.717]
[1717448164818,2.6732959,3776.8,3776.7,0.717]
[1717448214601,2.64803,3776.4,3776.1,1.38050366]
[1717448214805,2.64822,3776.2,3775.9,0.5557281]
[1717448215015,2.64822,3776.2,3776.1,0.717]
[1717448216517,3.0,3776.8,3775.5,0.83423835]
[1717448216518,2.64837,3775.9,3775.8,1.38061524]
[1717448216686,2.64837,3775.9,3775.8,1.63744231]
[1717448216885,2.64837,3775.9,3775.8,0.717]
[1717448219324,4.23455641,3775.9,3775.8,0.717]
[1717448221744,4.80740139,3775.9,3775.5,1.38069282]
[1717448222119,4.2351181,3775.6,3775.2,2.4254]
[1717448222275,1.58633201,3775.4,3775.2,2.4254]
[1717448222485,2.1588253,3775.4,3775.2,2.4254]
[1717448222690,0.57249329,3775.3,3775.2,2.4254]
[1717448222997,1.58633201,3775.4,3775.2,3.1424]
[1717448223126,0.57249329,3775.5,3775.2,3.1424]
[1717448223127,2.15886796,3775.5,3775.2,3.1424]
[1717448223483,2.15886796,3775.5,3775.4,0.717]
[1717448223777,0.5725717,3775.5,3775.4,0.717]
[1717448226290,1.58596524,3775.5,3775.4,0.717]
[1717448226445,2.64858,3775.6,3775.4,0.717]
[1717448226645,2.15855016,3775.5,3775.4,0.717]
[1717448227377,0.57257956,3775.5,3775.4,0.717]
[1717448228442,0.57258166,3775.5,3775.4,0.717]
[1717448228642,4.23486783,3775.6,3775.4,0.717]
[1717448229489,0.02366641,3775.5,3775.4,0.717]
[1717448233684,0.59625869,3775.5,3775.4,0.717]
[1717448233883,0.02366641,3775.5,3775.4,0.717]
[1717448235267,0.59625761,3775.5,3775.4,0.717]
[1717448236095,0.02366641,3775.5,3775.4,0.717]
[1717448236385,2.18257432,3775.5,3775.4,0.717]
[1717448237678,2.18227213,3775.5,3775.4,0.717]
[1717448238084,0.59627032,3775.5,3775.4,0.717]
[1717448238384,2.18227213,3775.5,3775.4,0.717]
[1717448241922,0.59627032,3775.5,3775.4,0.717]
[1717448246901,2.64873,3775.4,3775.1,1.0]
[1717448247116,2.64886,3775.2,3775.1,1.0]
[1717448247262,2.67243241,3775.2,3775.1,1.0]
[1717448247465,2.67243241,3775.2,3775.1,1.717]
[1717448247819,3.24510749,3775.2,3775.1,1.717]
[1717448248184,3.24511124,3775.2,3775.1,1.717]
[1717448249900,3.24241124,3775.2,3775.1,1.717]
[1717448253837,3.24240332,3775.2,3775.1,1.717]
[1717448254334,3.21883091,3775.2,3775.1,1.717]
[1717448258734,3.2188376,3775.2,3775.1,1.717]
[1717448260734,3.21883661,3775.2,3775.1,1.717]
[1717448261339,3.83339077,3775.2,3775.1,1.0]
[1717448261496,9.14679077,3775.2,3775.1,1.717]
[1717448268038,6.14679077,3775.2,3775.1,1.717]
[1717448269355,9.14679077,3775.2,3775.1,1.717]
[1717448273178,9.14682006,3775.2,3775.1,1.717]
[1717448274735,9.1468204,3775.2,3775.1,1.717]
[1717448276989,9.1468204,3775.2,3775.1,1.0]
[1717448277200,9.1468204,3775.2,3775.1,1.717]
[1717448278678,9.1468204,3775.2,3775.1,1.0]
[1717448279040,9.1468204,3775.2,3775.1,1.717]
[1717448279980,9.1468204,3775.2,3775.1,1.0]
[1717448280156,9.1468204,3775.2,3775.1,1.717]
[1717448280353,9.1468204,3775.2,3775.1,1.0]
[1717448280568,9.1468204,3775.2,3775.1,1.717]
[1717448285063,9.14682681,3775.2,3775.1,1.717]
[1717448285695,9.1468261,3775.2,3775.1,1.717]
[1717448288204,11.7956861,3775.2,3775.1,1.0]
[1717448288402,11.7956861,3775.2,3775.1,1.717]
[1717448290469,12.3456861,3775.2,3775.1,1.717]
[1717448290668,13.0956861,3775.2,3775.1,1.0]
[1717448291315,13.09573695,3775.2,3775.1,1.0]
[1717448292769,13.09573695,3775.2,3775.1,1.717]
[1717448293808,13.09573695,3775.2,3775.1,1.0]
[1717448294107,13.09573695,3775.2,3775.1,1.717]
[1717448302991,7.58347695,3775.2,3775.1,1.717]
[1717448303214,6.21892279,3775.2,3775.1,1.717]
[1717448303986,6.21892279,3775.2,3775.1,4.2112]
[1717448304623,6.21887681,3775.2,3775.1,4.2112]
[1717448305927,6.21886847,3775.2,3775.1,4.2112]
[1717448310750,6.21880193,3775.2,3775.1,4.2112]
[1717448313901,6.21880193,3775.2,3775.1,1.0]
[1717448314107,7.06903212,3775.2,3775.1,1.717]
[1717448314551,6.21880193,3775.2,3775.1,1.717]
[1717448315744,6.21880193,3775.2,3775.1,1.0]
[1717448315944,6.21880193,3775.2,3775.1,1.717]
[1717448316415,6.21888429,3775.2,3775.1,1.717]
[1717448317029,6.21888429,3775.2,3775.1,1.0]
[1717448317234,6.21888429,3775.2,3775.1,1.717]
[1717448323855,6.21888429,3775.2,3775.1,4.1682]
[1717448324367,6.21886925,3775.2,3775.1,4.1682]
[1717448330787,3.21886925,3775.2,3775.1,4.58502]
[1717448330928,0.57270925,3775.2,3775.1,3.86802]
[1717448331143,0.57270925,3775.2,3775.1,4.58502]
[1717448333986,5.64865,3775.6,3775.1,4.58502]
[1717448334190,0.57260415,3775.5,3775.1,3.4512]
[1717448334416,2.64873,3775.4,3775.1,3.4512]
[1717448334631,3.57260415,3775.3,3775.1,3.4512]
[1717448334749,0.57260415,3775.2,3775.1,3.4512]
[1717448334948,0.57260415,3775.2,3775.1,4.51332]
[1717448335572,0.57260388,3775.2,3775.1,4.51332]
[1717448336882,2.15746373,3775.2,3775.1,4.51332]
[1717448339116,0.57260388,3775.2,3775.1,4.51332]
[1717448340369,0.57260388,3775.2,3775.1,1.0]
[1717448340714,0.57260388,3775.2,3775.1,1.717]
[1717448341706,3.22152718,3775.2,3775.1,1.0]
[1717448341918,3.22152718,3775.2,3775.1,1.717]
[1717448342117,2.64886,3775.2,3775.1,1.717]
[1717448342270,3.22155041,3775.2,3775.1,1.717]
[1717448343282,3.53496881,3775.2,3775.1,1.0]
[1717448343622,3.53496881,3775.2,3775.1,1.717]
[1717448343623,6.53496881,3775.2,3775.1,1.717]
[1717448346476,6.53498834,3775.2,3775.1,1.717]
[1717448349510,11.45384834,3775.2,3775.1,1.0]
[1717448349718,12.00384834,3775.2,3775.1,1.717]
[1717448350344,12.00385169,3775.2,3775.1,1.717]
[1717448350543,13.32511746,3775.2,3775.1,1.0]
[1717448350733,14.07511746,3775.2,3775.1,1.717]
[1717448351366,9.73385169,3775.2,3775.1,1.717]
[1717448351629,9.1611384,3775.2,3775.1,1.717]
[1717448351844,9.73384437,3775.2,3775.1,1.717]
[1717448352237,9.73384437,3775.2,3775.1,1.0]
[1717448352436,9.73384437,3775.2,3775.1,1.717]
[1717448354892,9.73384437,3775.2,3775.1,1.0]
[1717448355045,9.73384437,3775.2,3775.1,1.717]
[1717448355440,9.73385501,3775.2,3775.1,1.717]
[1717448356881,9.73384406,3775.2,3775.1,1.717]
[1717448358176,9.42042566,3775.2,3775.1,1.717]
[1717448360851,8.84772,3775.2,3775.1,1.717]
[1717448361052,9.4203968,3775.2,3775.1,1.0]
[1717448361278,9.4203968,3775.2,3775.1,1.717]
[1717448363590,9.42040126,3775.2,3775.1,1.717]
[1717448365515,11.09444139,3775.2,3775.1,1.717]
[1717448366895,11.09446847,3775.2,3775.1,1.717]
[1717448369274,11.09447702,3775.2,3775.1,1.717]
[1717448369470,6.22157689,3775.2,3775.1,1.717]
[1717448371892,6.22156959,3775.2,3775.1,1.717]
[1717448372761,6.22156967,3775.2,3775.1,1.717]
[1717448374696,6.22156987,3775.2,3775.1,1.717]
[1717448375005,8.48986987,3775.2,3775.1,1.0]
[1717448375198,10.62085686,3775.2,3775.1,1.717]
[1717448375596,13.26971686,3775.2,3775.1,1.717]
[1717448376484,13.26971686,3775.2,3775.1,1.0]
[1717448376691,13.26971686,3775.2,3775.1,1.717]
[1717448376876,13.26971686,3775.2,3775.1,1.0]
[1717448377199,13.26971686,3775.2,3775.1,1.717]
[1717448377990,13.26971686,3775.2,3775.1,1.0]
[1717448378201,13.26971686,3775.2,3775.1,1.717]
[1717448378396,13.26977047,3775.2,3775.1,1.717]
[1717448378578,13.26977047,3775.2,3775.1,1.0]
[1717448378759,13.26977047,3775.2,3775.1,1.717]
[1717448378961,14.01977047,3775.2,3775.1,1.717]
[1717448380285,10.17048348,3775.2,3775.1,1.717]
[1717448380631,9.42048348,3775.2,3775.1,1.717]
[1717448383800,8.87048348,3775.2,3775.1,1.717]
[1717448384791,8.87048348,3775.2,3775.1,1.0]
[1717448384975,8.87048348,3775.2,3775.1,1.717]
[1717448387699,13.35703183,3775.2,3775.1,1.717]
[1717448388015,14.10703183,3775.2,3775.1,1.717]
[1717448389376,16.75589183,3775.2,3775.1,1.717]
[1717448392805,16.75589183,3775.2,3775.1,1.0]
[1717448393009,16.75589183,3775.2,3775.1,1.717]
[1717448394329,18.0771576,3775.2,3775.1,1.0]
[1717448394501,18.0771576,3775.2,3775.1,1.717]
[1717448395216,18.0771576,3775.2,3775.1,1.0]
[1717448395418,2.6493,3774.6,3773.3,2.3359]
[1717448395617,1.58239871,3773.7,3773.3,2.3359]
[1717448395920,2.64991,3773.7,3773.6,3.0518]
[1717448396096,3.22275343,3773.7,3773.6,3.0518]
[1717448396289,4.23227522,3773.7,3773.6,3.0518]
[1717448396488,3.22275343,3773.7,3773.6,3.0518]
[1717448396881,2.64991,3773.7,3773.6,3.0518]
[1717448397114,4.23224237,3773.7,3773.6,3.0518]
[1717448397417,4.8050858,3773.7,3773.6,3.0518]
[1717448398439,4.8050858,3773.7,3773.6,2.3348]
[1717448398440,3.22275343,3773.7,3773.6,2.3348]
[1717448398585,3.22275343,3773.7,3773.6,3.0518]
[1717448400320,0.57284343,3773.7,3773.6,3.35698]
[1717448401528,7.32,3774.2,3773.6,2.3348]
[1717448401712,7.32,3774.2,3774.1,0.717]
[1717448401921,7.32,3774.2,3774.1,3.1044]
[1717448401922,3.0,3774.2,3774.1,3.1044]
[1717448402089,3.0,3774.4,3774.1,3.1044]
[1717448402289,3.0,3774.8,3774.4,0.717]
[1717448402502,4.032,3774.8,3774.7,0.717]
[1717448402688,3.0,3774.8,3774.1,2.3874]
[1717448402916,3.0,3774.8,3774.7,0.717]
[1717448403619,3.0,3774.8,3774.1,2.3874]
[1717448403828,3.0,3774.8,3774.7,0.717]
[1717448406646,3.57281192,3774.8,3774.7,0.717]
[1717448407858,3.57281192,3774.8,3774.1,2.3874]
[1717448408400,3.57281192,3774.8,3773.0,0.55564613]
[1717448408401,6.99204965,3774.8,3773.8,2.2703]
[1717448408643,1.87126577,3774.7,3773.5,2.2703]
[1717448408845,1.87126577,3774.7,3774.3,0.717]
[1717448408846,2.94293228,3774.6,3774.3,0.717]
[1717448409047,2.94293228,3774.6,3772.9,1.38151036]
[1717448409048,1.5841711,3773.7,3772.9,2.2703]
[1717448409355,1.58406943,3773.5,3773.0,0.50563]
[1717448409499,7.32,3774.0,3773.0,0.50563]
[1717448409500,1.58406943,3773.4,3773.0,0.50563]
[1717448409702,1.58406943,3773.4,3773.3,0.717]
[1717448410256,1.58406943,3773.4,3773.1,0.40971958]
[1717448410408,1.58406943,3773.4,3773.3,0.717]
[1717448412260,1.58406943,3773.5,3773.3,0.717]
[1717448412412,1.58406943,3773.4,3773.1,0.40971958]
[1717448412610,1.58406943,3773.4,3773.3,0.717]
[1717448416349,0.57283228,3773.5,3773.3,0.717]
[1717448416543,0.57283228,3773.8,3773.4,0.717]
[1717448416864,7.32,3774.0,3773.7,0.717]
[1717448417074,2.2772,3774.2,3773.9,0.717]
[1717448417272,0.57289685,3773.9,3772.8,2.3565]
[1717448417432,1.58473063,3773.3,3772.8,2.3565]
[1717448417665,1.58473063,3773.3,3773.2,0.717]
[1717448417865,0.57289685,3773.6,3773.2,0.717]
[1717448418074,3.0,3774.0,3773.5,0.717]
[1717448418398,3.0,3774.0,3773.9,0.717]
[1717448418603,3.57290534,3774.0,3773.9,0.717]
[1717448418752,0.57290534,3774.0,3773.9,0.717]
[1717448420182,0.57290534,3774.0,3772.9,0.23565]
[1717448420542,0.57290534,3774.0,3773.9,0.717]
[1717448420679,1.15791914,3774.0,3773.9,0.717]
[1717448421329,0.58501053,3774.0,3773.9,0.717]
[1717448421489,1.15791827,3774.0,3773.9,0.717]
[1717448424727,1.15791827,3774.0,3772.9,0.23565]
[1717448425023,3.0,3774.1,3773.9,0.717]
[1717448425243,0.57291048,3774.0,3773.9,0.717]
[1717448425810,1.12291048,3774.0,3773.9,0.717]
[1717448426002,2.4184,3773.9,3772.3,2.2918]
[1717448426355,2.4184,3773.9,3773.4,0.717]
[1717448426356,1.35916811,3773.8,3773.4,0.717]
[1717448426508,1.12291048,3773.7,3773.6,0.717]
[1717448426902,1.12291048,3773.7,3772.3,2.2918]
[1717448427204,1.58411822,3772.7,3772.3,2.2918]
[1717448427440,1.58411822,3772.6,3772.4,0.22918]
[1717448427656,1.58411822,3772.6,3772.5,0.717]
[1717448429270,1.58411822,3772.7,3772.5,0.717]
[1717448429475,1.58411822,3772.7,3772.6,0.717]
[1717448430672,4.23473822,3772.7,3772.6,0.717]
[1717448431020,4.8076487,3772.7,3772.6,0.717]
[1717448431641,3.22364009,3772.7,3772.6,0.717]
[1717448431939,4.80828364,3772.7,3772.6,0.717]
[1717448432160,4.23526355,3772.7,3772.6,0.717]
[1717448432362,4.80828364,3772.7,3772.6,0.717]
[1717448432876,3.22364009,3772.7,3772.6,0.717]
[1717448433172,4.80831644,3772.7,3772.6,0.717]
[1717448433344,4.23529674,3772.7,3772.6,0.717]
[1717448433745,4.80831644,3772.7,3772.6,0.717]
[1717448436533,4.80831644,3772.7,3772.3,2.2918]
[1717448436534,2.65081,3772.5,3772.3,2.2918]
[1717448436729,2.65081,3772.5,3772.4,0.717]
[1717448441036,1.58405129,3772.7,3772.5,2.4786]
[1717448441237,2.15707028,3772.7,3772.6,0.717]
[1717448441467,0.57301899,3772.7,3772.6,0.717]
[1717448441769,2.65055,3772.8,3772.5,2.4786]
[1717448442065,2.65055,3772.8,3772.6,0.717]
[1717448443045,2.65055,3772.8,3772.5,2.828248]
[1717448443266,2.65055,3772.8,3772.7,0.717]
[1717448443434,3.22351998,3772.8,3772.7,0.717]
[1717448443636,3.22351856,3772.8,3772.7,0.717]
[1717448444164,2.65055,3772.8,3772.7,0.717]
[1717448446379,3.22350476,3772.8,3772.7,0.717]
[1717448446541,2.65055,3772.8,3772.7,0.717]
[1717448447062,2.65055,3772.8,3771.7,5.11779]
[1717448447063,2.65078,3772.5,3771.7,5.11779]
[1717448447236,2.65078,3772.5,3772.4,0.717]
[1717448447438,4.80721475,3772.5,3772.4,0.717]
[1717448448193,3.22380358,3772.5,3772.4,0.717]
[1717448448380,4.80721475,3772.5,3772.4,0.717]
[1717448448682,3.22380358,3772.5,3772.4,0.717]
[1717448449093,4.80721475,3772.5,3772.4,0.717]
[1717448450047,3.22380358,3772.5,3772.4,0.717]
[1717448450294,3.22380358,3772.5,3771.4,4.03350168]
[1717448450295,2.65097,3772.3,3771.4,4.03350168]
[1717448450486,2.65097,3772.3,3772.2,0.717]
[1717448450487,4.23496579,3772.3,3772.2,0.717]
[1717448450638,4.8080244,3772.3,3772.2,0.717]
[1717448452062,3.22402861,3772.3,3772.2,0.717]
[1717448453302,2.65113,3772.0,3771.5,1.32126577]
[1717448453458,2.65113,3772.0,3771.9,0.717]
[1717448453797,3.22420893,3772.0,3771.9,0.717]
[1717448454095,3.22420978,3772.0,3771.9,0.717]
[1717448455359,4.80815051,3772.0,3771.5,0.59354847]
[1717448455694,4.80815051,3772.0,3771.9,0.717]
[1717448455878,4.80815051,3772.0,3771.5,0.59354847]
[1717448456090,4.23507073,3772.0,3771.9,0.717]
[1717448456257,4.80815257,3772.0,3771.9,0.717]
[1717448459197,3.22421184,3772.0,3771.9,0.717]
[1717448459556,4.80815257,3772.0,3771.9,0.717]
[1717448459982,3.22421184,3772.0,3771.5,0.59354847]
[1717448460196,3.22421184,3772.0,3771.3,2.6765]
[1717448460197,1.58426271,3771.8,3771.3,2.6765]
[1717448460404,0.57308184,3771.8,3771.7,0.717]
[1717448460708,1.58426271,3771.9,3771.7,0.717]
[1717448460709,2.15734455,3771.9,3771.7,0.717]
[1717448460863,4.23551271,3771.8,3771.7,0.717]
[1717448461196,4.80859455,3771.8,3771.7,0.717]
[1717448461408,3.22433184,3771.8,3771.7,0.717]
[1717448462501,2.65125,3771.8,3771.7,0.717]
[1717448468109,1.58426271,3772.1,3771.7,0.92082658]
[1717448468408,2.65102,3772.2,3772.0,0.717]
[1717448469306,7.32,3772.3,3772.0,0.717]
[1717448469604,2.65072,3772.6,3772.2,3.0888]
[1717448469807,2.65072,3772.6,3772.5,0.717]
[1717448470008,2.65072,3772.6,3772.5,1.15800658]
[1717448470331,2.65044,3773.0,3772.5,1.15800658]
[1717448470514,2.65044,3773.0,3772.9,0.717]
[1717448470912,5.65044,3773.0,3772.9,0.717]
[1717448471287,5.65044,3773.0,3772.5,0.44100658]
[1717448471487,3.0,3772.9,3772.5,0.44100658]
[1717448471710,3.0,3772.9,3772.8,0.717]
[1717448473785,2.65044,3773.0,3772.8,0.717]
[1717448474109,2.65044,3773.0,3772.8,3.0888]
[1717448474319,2.65044,3773.0,3772.9,0.30888]
[1717448474616,2.65044,3773.0,3772.9,1.02588]
[1717448474923,2.65044,3773.0,3771.0,6.2716924]
[1717448474924,2.65066,3772.7,3772.0,2.3426]
[1717448475076,2.65066,3772.7,3772.6,0.717]
[1717448475591,2.65084,3772.4,3771.6,2.4901]
[1717448475774,2.65084,3772.4,3772.3,0.717]
[1717448476124,2.915924,3772.4,3772.3,0.717]
[1717448476292,2.65084,3772.4,3771.6,2.4901]
[1717448476620,2.65084,3772.4,3772.3,0.717]
[1717448482092,2.65084,3772.4,3771.6,2.4901]
[1717448482434,2.65084,3772.4,3772.3,0.717]
[1717448483720,4.23472635,3772.8,3772.3,0.717]
[1717448483940,2.65058,3772.8,3772.7,0.717]
[1717448484116,5.65058,3772.8,3772.7,0.717]
[1717448490494,2.65058,3772.8,3772.7,0.717]
[1717448491433,4.23448635,3773.2,3772.7,0.717]
[1717448491607,2.65034,3773.2,3773.1,0.717]
[1717448493828,2.65034,3773.2,3772.8,2.34]
[1717448494135,2.65034,3773.2,3772.9,0.234]
[1717448494327,2.65034,3773.2,3773.1,0.717]
[1717448496936,4.98824,3773.2,3773.1,0.717]
[1717448497136,4.98824,3773.2,3772.2,4.03277583]
[1717448497341,4.98824,3773.2,3773.1,0.717]
[1717448498127,2.65034,3773.2,3773.1,0.717]
[1717448504951,2.65047,3773.0,3772.3,3.65146577]
[1717448505127,2.65047,3773.0,3772.9,0.717]
[1717448505330,2.65047,3773.0,3771.7,0.8334692]
[1717448505331,2.65047,3773.0,3771.9,0.55564613]
[1717448505531,1.58373734,3772.6,3772.5,0.717]
[1717448505848,1.02323873,3772.6,3772.5,0.717]
[1717448506159,2.65116,3772.0,3771.3,0.21]
[1717448506340,2.65116,3772.0,3771.9,0.717]
[1717448506915,2.65116,3772.0,3771.3,0.21]
[1717448507249,2.65116,3772.0,3771.9,0.717]
[1717448508316,2.65138,3771.7,3771.3,0.21]
[1717448508523,2.65138,3771.7,3771.4,0.25233]
[1717448508731,2.65138,3771.7,3771.6,0.717]
[1717448520149,2.65138,3771.7,3771.3,0.21]
[1717448520558,2.65138,3771.7,3771.6,0.717]
[1717448525272,4.48,3772.4,3771.7,2.3022]
[1717448525459,4.48,3772.4,3772.2,0.717]
[1717448525655,2.65062,3772.7,3772.2,0.717]
[1717448525902,2.65083,3772.4,3771.7,3.62346577]
[1717448526076,2.65083,3772.4,3772.3,0.717]
[1717448526676,2.65062,3772.7,3772.3,0.717]
[1717448526875,2.65062,3772.7,3772.6,0.717]
[1717448529768,5.65036,3773.1,3772.6,0.717]
[1717448530010,5.65036,3773.1,3772.3,2.3022]
[1717448530011,5.65036,3773.1,3773.0,0.717]
[1717448531721,5.65036,3773.1,3772.3,2.3022]
[1717448531928,5.65036,3773.1,3773.0,0.717]
[1717448532604,2.65011,3773.5,3773.0,0.717]
[1717448532804,2.65011,3773.5,3773.4,0.717]
[1717448534133,5.65011,3773.5,3773.4,0.717]
[1717448534534,2.65011,3773.5,3773.4,0.717]
[1717448535112,2.64983,3773.9,3773.4,0.717]
[1717448535345,3.0,3773.8,3772.9,2.3022]
[1717448535507,3.0,3773.8,3773.7,0.717]
[1717448537137,2.64983,3773.9,3773.7,0.717]
[1717448538213,3.0,3774.2,3773.7,0.717]
[1717448538420,3.0,3774.2,3774.0,0.717]
[1717448540219,2.64963,3774.1,3773.5,2.3725]
[1717448540418,3.0,3774.0,3773.5,3.93101577]
[1717448540644,3.0,3774.0,3773.9,0.717]
[1717448541901,2.64985,3773.8,3773.1,2.4655]
[1717448542104,2.64985,3773.8,3773.7,0.717]
[1717448553320,3.0,3774.0,3773.7,0.717]
[1717448553543,3.0,3774.0,3773.1,3.78676577]
[1717448553544,2.64964,3774.1,3773.9,0.717]
[1717448553768,3.0,3774.0,3773.9,0.717]
[1717448554526,2.64964,3774.1,3773.9,0.717]
[1717448554730,4.48,3774.5,3773.9,0.717]
[1717448554731,7.12942,3774.5,3773.9,0.717]
[1717448554928,7.12942,3774.5,3774.4,0.717]
[1717448555130,2.64942,3774.5,3774.4,0.717]
[1717448556042,5.64942,3774.5,3774.4,0.717]
[1717448557093,2.64942,3774.5,3774.4,0.717]
[1717448557999,2.64942,3774.5,3773.5,2.65005]
[1717448558160,5.09592,3774.5,3774.4,0.717]
[1717448565678,5.66866877,3774.5,3774.4,0.717]
[1717448566178,5.09592,3774.5,3774.4,0.717]